bitfinex-derivatives/quotes_ETHF0:USTF0_20251031
["timestamp","ask_amount","ask_price","bid_price","bid_amount"]
[1761900996003,8.02469039,3852.4,3852.3,41.72087271]
[1761900997403,8.02469039,3852.4,3852.3,40.8]
[1761900998501,1.0451,3852.3,3852.2,0.00233467]
[1761900998700,8.02469039,3852.3,3852.2,0.00233467]
[1761900999103,8.02469039,3852.3,3852.2,40.80233467]
[1761900999299,8.02469039,3852.3,3852.2,0.00233467]
[1761901002807,0.175,3851.5,3851.0,1.8486128]
[1761901003116,0.9986,3851.1,3851.0,0.9658]
[1761901003302,0.9986,3851.1,3851.0,41.7658]
[1761901003906,0.9986,3851.1,3851.0,41.7687165]
[1761901004103,1.98938034,3851.1,3851.0,41.3778165]
[1761901004503,1.98938034,3851.1,3851.0,41.1062165]
[1761901004703,1.98938034,3851.1,3851.0,40.8029165]
[1761901007502,1.98938034,3851.1,3851.0,0.0029165]
[1761901008505,0.9986,3850.4,3850.3,0.21135832]
[1761901008699,0.8806,3850.0,3849.9,40.8]
[1761901009309,2.16438034,3850.0,3849.9,40.8]
[1761901009511,2.16639936,3850.0,3849.9,40.80324245]
[1761901011611,2.16639936,3850.0,3849.9,41.19414245]
[1761901013309,1.87339936,3850.0,3849.9,41.19414245]
[1761901013514,0.7056,3850.9,3850.8,0.5749]
[1761901013713,1.98938034,3850.9,3850.8,0.5749]
[1761901014912,0.9986,3850.6,3850.5,0.3033]
[1761901015214,1.98938034,3850.6,3850.5,0.63061]
[1761901015409,1.98938034,3850.6,3850.5,0.90221]
[1761901016011,1.98938034,3850.6,3850.5,1.29311]
[1761901016813,0.7056,3850.6,3850.5,1.29311]
[1761901017013,0.4028,3850.6,3850.5,1.29311]
[1761901018112,0.00282264,3850.9,3850.8,1.29308]
[1761901019215,0.40562264,3850.9,3850.8,42.09308]
[1761901019513,0.00282264,3850.9,3850.8,42.09308]
[1761901022916,1.99220298,3850.9,3850.8,41.3749]
[1761901023112,1.99220298,3850.9,3850.8,41.1033]
[1761901023912,1.99220298,3850.9,3850.8,40.8]
[1761901024412,1.99220298,3850.9,3850.4,0.32732]
[1761901024413,0.7708,3850.5,3850.4,0.90222]
[1761901024814,2.16438034,3850.5,3850.4,41.3749]
[1761901029118,0.5958,3850.3,3850.2,0.32733]
[1761901029423,0.9986,3850.3,3850.2,0.63063]
[1761901029624,1.98938034,3850.3,3850.2,41.1033]
[1761901029817,1.98938034,3850.3,3850.2,40.8]
[1761901031028,0.93178386,3851.6,3850.2,40.8]
[1761901031029,1.38224487,3852.9,3852.5,0.1693]
[1761901031220,0.2388,3852.6,3852.5,0.4617]
[1761901031426,0.2388,3852.6,3852.5,0.8008]
[1761901031621,0.2388,3852.6,3852.5,1.2885]
[1761901031821,1.39762729,3854.2,3852.6,0.4877]
[1761901032023,0.2388,3852.7,3852.6,1.12221132]
[1761901032329,0.2388,3852.8,3852.7,1.1192]
[1761901033431,0.4776,3853.1,3853.0,0.4617]
[1761901034130,0.4776,3852.7,3852.6,0.29541132]
[1761901034526,0.4776,3852.7,3852.6,0.63451132]
[1761901034725,0.2388,3852.7,3852.6,1.12221132]
[1761901035128,0.4776,3853.1,3853.0,0.9494]
[1761901036936,0.7164,3853.1,3853.0,0.657]
[1761901037137,0.7164,3853.1,3853.0,0.4877]
[1761901037428,0.7806,3852.7,3852.6,0.37871132]
[1761901038134,0.3903,3852.7,3852.6,1.32861132]
[1761901038733,0.3903,3852.7,3852.6,1.65575132]
[1761901039129,0.3903,3853.3,3852.7,0.5633]
[1761901040027,0.3903,3852.8,3852.7,1.3256]
[1761901041634,0.7806,3852.8,3852.7,1.3256]
[1761901042134,0.7806,3852.8,3852.7,0.939]
[1761901042135,1.1709,3852.8,3852.7,0.939]
[1761901042326,0.7806,3852.8,3852.7,0.939]
[1761901042634,0.7806,3852.8,3852.7,0.5633]
[1761901042635,1.1709,3852.8,3852.7,0.5633]
[1761901043031,1.1709,3852.7,3852.6,0.56631132]
[1761901043432,1.1709,3852.7,3852.6,0.00301132]
[1761901044726,1.1709,3852.7,3852.6,0.56631132]
[1761901045135,0.3903,3852.7,3852.6,1.32861132]
[1761901045535,0.7806,3852.7,3852.6,1.32861132]
[1761901047434,1.1709,3853.2,3853.1,0.939]
[1761901049137,1.1709,3853.2,3853.1,0.5633]
[1761901049832,0.7806,3853.1,3852.6,0.76531132]
[1761901050039,0.3903,3853.0,3852.7,0.5633]
[1761901050239,1.1709,3852.8,3852.7,0.939]
[1761901050837,1.1709,3852.8,3852.7,0.5633]
[1761901051139,0.7806,3852.8,3852.7,0.939]
[1761901051329,0.7806,3852.8,3852.7,1.3256]
[1761901051534,1.1709,3852.8,3852.7,1.3256]
[1761901052534,1.1709,3852.3,3851.5,0.1693]
[1761901052735,9.4234,3853.5,3851.5,0.9316]
[1761901052736,0.7806,3851.6,3851.5,0.9316]
[1761901052940,0.7806,3852.0,3851.9,0.7623]
[1761901053333,0.7806,3852.0,3851.9,1.3256]
[1761901053530,1.1709,3852.4,3852.3,0.3757]
[1761901053732,1.1709,3852.4,3852.3,0.5633]
[1761901054439,1.1709,3852.4,3852.3,0.939]
[1761901054440,0.7806,3852.4,3852.3,0.939]
[1761901054639,1.1709,3852.4,3852.3,0.939]
[1761901055041,1.1709,3852.4,3852.3,0.5633]
[1761901058445,0.7806,3852.4,3852.3,0.939]
[1761901058646,1.1709,3852.4,3852.3,0.939]
[1761901060346,1.25208785,3852.4,3852.3,0.939]
[1761901061054,0.86178785,3852.4,3852.3,0.939]
[1761901061548,1.15958785,3852.4,3852.3,0.939]
[1761901062350,0.86178785,3852.4,3852.3,0.939]
[1761901064252,1.15958785,3852.4,3852.3,0.939]
[1761901064945,9.271,3853.0,3852.5,0.2288]
[1761901065151,0.2978,3852.7,3852.6,1.2832]
[1761901065341,0.37898547,3852.7,3852.6,1.2832]
[1761901066748,0.67678547,3852.7,3852.6,1.2832]
[1761901067050,0.97458547,3852.7,3852.6,0.5502]
[1761901067249,0.97458547,3852.7,3852.0,0.92981822]
[1761901067449,0.8934,3852.4,3852.3,0.5502]
[1761901068057,0.8934,3852.4,3852.3,0.9386]
[1761901069851,0.5956,3852.4,3852.3,0.9386]
[1761901070154,0.67678646,3852.4,3852.3,0.9386]
[1761901070549,0.97458646,3852.4,3852.3,0.9386]
[1761901071154,0.67678646,3852.4,3852.3,0.9386]
[1761901072156,0.97458646,3852.4,3852.3,0.9386]
[1761901072457,0.97458646,3852.4,3852.3,0.5502]
[1761901072954,0.97458646,3852.4,3852.3,0.9386]
[1761901073357,0.67678646,3852.4,3852.3,0.9386]
[1761901074961,0.97458646,3852.4,3852.3,0.9386]
[1761901078658,0.97458646,3852.4,3852.3,0.5502]
[1761901079165,0.97458646,3852.4,3852.3,0.9386]
[1761901079564,0.67678646,3852.4,3852.3,0.9386]
[1761901081366,0.67678651,3852.4,3852.3,0.9386]
[1761901081764,0.67678651,3852.4,3852.3,1.2832]
[1761901083363,0.97458651,3852.4,3852.3,1.2832]
[1761901083565,0.97458651,3852.4,3852.3,0.9386]
[1761901083969,0.97458687,3852.4,3852.3,0.9386]
[1761901086571,0.67678687,3852.4,3852.3,0.9386]
[1761901086972,0.67678687,3852.4,3852.3,1.2832]
[1761901094172,0.08118687,3852.4,3852.3,1.2832]
[1761901094380,0.93239858,3853.1,3853.0,1.4577]
[1761901094682,0.93239858,3853.4,3853.3,0.7147]
[1761901094975,0.93239858,3853.7,3853.5,1.4577]
[1761901095175,1.39762729,3853.9,3853.6,0.8556]
[1761901095176,0.93239858,3853.9,3853.6,0.8556]
[1761901095475,10.14194286,3854.2,3854.1,1.23]
[1761901095673,9.2907002,3854.2,3854.1,1.23]
[1761901095873,0.0837002,3854.2,3854.1,1.23]
[1761901096276,0.00254428,3854.2,3854.1,1.23]
[1761901097973,0.33874428,3854.2,3854.1,1.23]
[1761901099476,0.50684428,3854.2,3854.1,1.23]
[1761901099676,0.50684428,3854.2,3854.1,0.8897]
[1761901100380,0.33874428,3854.2,3854.1,0.8897]
[1761901101076,0.17064428,3854.2,3854.1,1.2]
[1761901104179,9.36764428,3854.2,3854.1,1.2]
[1761901106478,0.00254428,3854.2,3854.1,1.2]
[1761901107787,0.17064428,3854.2,3854.1,1.2]
[1761901110181,0.00254428,3854.2,3854.1,1.2]
[1761901110586,0.17064428,3854.2,3854.1,1.2]
[1761901111678,0.33874428,3854.2,3854.1,1.2]
[1761901111880,0.00254428,3854.2,3854.1,1.2]
[1761901113388,0.17064428,3854.2,3854.1,1.2]
[1761901113587,0.33874428,3854.2,3854.1,1.2]
[1761901113890,0.41989358,3854.2,3854.1,1.2]
[1761901114287,0.58799358,3854.2,3854.1,0.5153]
[1761901117989,0.41989358,3854.2,3854.1,0.8393]
[1761901118588,0.58799358,3854.2,3854.1,0.8393]
[1761901118985,0.25179358,3854.2,3854.1,1.1496]
[1761901119191,0.41989358,3854.2,3854.1,1.1496]
[1761901119691,9.75299358,3854.2,3854.1,1.1496]
[1761901120083,9.58489358,3854.2,3854.1,1.1496]
[1761901122290,9.67609358,3854.2,3854.1,0.8393]
[1761901123485,9.58489358,3854.2,3854.1,0.8393]
[1761901124286,10.51729216,3854.2,3854.1,0.8393]
[1761901129391,0.0912,3854.1,3854.0,0.4517]
[1761901129695,0.0912,3854.1,3853.5,0.834]
[1761901129696,0.1824,3853.6,3853.5,0.834]
[1761901129995,9.41755724,3853.6,3853.5,1.2857]
[1761901131192,9.32635724,3853.6,3853.5,1.2857]
[1761901135799,0.08115724,3853.6,3853.5,1.2857]
[1761901136095,9.32635724,3853.6,3853.5,1.2857]
[1761901138198,9.41755724,3853.6,3853.5,1.2857]
[1761901139001,9.23515724,3853.6,3853.5,1.2857]
[1761901141697,9.32635724,3853.6,3853.5,1.2857]
[1761901143003,9.23515724,3853.6,3853.5,1.2857]
[1761901144612,0.08115724,3853.6,3853.5,1.61276]
[1761901144808,9.154,3853.8,3853.7,1.058]
[1761901145016,9.23515333,3853.8,3853.7,1.058]
[1761901145314,0.08115333,3853.8,3853.7,1.058]
[1761901154321,0.00254428,3854.2,3854.1,0.9557]
[1761901154809,0.08369438,3854.2,3854.1,0.9557]
[1761901155016,0.00254428,3854.2,3854.1,1.64318553]
[1761901155215,0.00254428,3854.2,3854.1,0.9557]
[1761901155415,0.00254428,3854.2,3854.1,41.7557]
[1761901156012,0.93239858,3854.9,3854.8,0.9557]
[1761901156213,0.93239858,3854.9,3854.5,0.1859]
[1761901156214,0.93239858,3855.5,3855.1,0.9557]
[1761901156416,0.93639858,3855.5,3855.4,0.9557]
[1761901156721,1.01752566,3855.5,3855.4,0.9557]
[1761901156916,1.02152566,3855.5,3855.4,0.95879921]
[1761901157118,0.09094626,3855.5,3855.4,0.95879921]
[1761901157312,0.09094626,3855.5,3855.4,0.67749921]
[1761901157512,0.08294626,3855.5,3855.4,0.93729921]
[1761901157720,9.23494626,3855.5,3855.4,0.93729921]
[1761901158619,9.23494626,3855.5,3855.4,0.67749921]
[1761901159317,9.23494583,3855.5,3855.4,0.67749921]
[1761901160923,9.23494583,3855.5,3855.4,0.93729921]
[1761901164834,9.23194583,3855.5,3855.4,0.93729921]
[1761901166027,0.08294583,3855.5,3855.4,0.93729921]
[1761901166424,3.06994583,3855.5,3855.4,0.93729921]
[1761901166624,0.08294583,3855.5,3855.4,0.93729921]
[1761901167025,3.06994583,3855.5,3855.4,0.93729921]
[1761901169124,3.06994583,3855.5,3855.4,0.39429921]
[1761901172329,3.06994583,3855.5,3855.4,0.00309921]
[1761901172723,3.06994583,3855.5,3855.4,0.41669921]
[1761901173725,3.06994583,3855.5,3855.4,0.93789921]
[1761901174126,0.08294583,3855.5,3855.4,0.93789921]
[1761901174326,9.12094583,3855.5,3855.4,0.93789921]
[1761901175225,9.22994583,3855.5,3855.4,0.93789921]
[1761901176333,9.22894583,3855.5,3855.4,0.93789921]
[1761901178230,9.14781918,3855.5,3855.4,0.93789921]
[1761901178732,0.0829457,3855.5,3855.4,0.93789921]
[1761901178927,9.2289457,3855.5,3855.4,0.93789921]
[1761901179128,9.14781918,3855.5,3855.4,0.93789921]
[1761901179322,0.00181918,3855.5,3855.4,0.93789921]
[1761901179528,9.14781918,3855.5,3855.4,0.93789921]
[1761901179727,9.22894496,3855.5,3855.4,0.93789921]
[1761901179924,0.08294496,3855.5,3855.4,0.93789921]
[1761901180127,9.14781918,3855.5,3855.4,0.93789921]
[1761901180931,9.22894336,3855.5,3855.4,0.93789921]
[1761901182335,0.08294336,3855.5,3855.4,0.93789921]
[1761901182535,9.22794336,3855.5,3855.4,0.93789921]
[1761901184137,10.16034194,3855.5,3855.4,0.93789921]
[1761901184337,10.16034194,3855.5,3855.4,0.41669921]
[1761901184538,10.16104331,3855.5,3855.4,0.41669921]
[1761901185237,9.22794336,3855.5,3855.4,0.41669921]
[1761901185437,9.22794336,3855.5,3855.4,0.66709921]
[1761901187934,9.22794336,3855.5,3855.4,0.00309921]
[1761901188141,10.62557065,3855.5,3855.4,0.35999921]
[1761901188341,10.62557065,3855.5,3855.4,0.61039921]
[1761901188540,10.62557065,3855.5,3855.4,0.35999921]
[1761901191940,9.22794336,3855.5,3855.4,0.35999921]
[1761901193338,9.22794336,3855.5,3855.4,0.00309921]
[1761901193535,9.22794336,3855.5,3855.4,0.35999921]
[1761901194042,9.22794336,3855.5,3855.4,0.00309921]
[1761901196245,11.06950085,3855.5,3854.4,0.3569]
[1761901196446,0.9339035,3854.8,3854.1,0.3569]
[1761901196648,9.22212418,3854.7,3854.1,0.3569]
[1761901196847,0.08112418,3854.6,3854.1,0.3569]
[1761901197244,9.141,3854.7,3854.1,0.35932232]
[1761901197451,0.0811436,3854.6,3854.1,0.35932232]
[1761901197745,0.9339035,3854.4,3854.1,0.35932232]
[1761901197946,9.2221436,3854.3,3854.1,0.35932232]
[1761901198248,0.0811436,3854.2,3854.1,0.35932232]
[1761901200651,0.0811436,3854.2,3854.1,0.60972232]
[1761901201448,1.40085525,3854.8,3854.5,0.166]
[1761901201449,0.9339035,3854.8,3854.5,0.166]
[1761901201648,0.9339035,3854.8,3854.7,0.6073]
[1761901201948,10.15605076,3854.8,3854.7,0.3569]
[1761901202249,9.22214726,3854.8,3854.7,0.3569]
[1761901202451,9.22214726,3854.8,3854.7,0.6073]
[1761901202946,9.22214726,3854.8,3854.7,0.3569]
[1761901203347,9.22214726,3854.8,3854.7,0.6073]
[1761901204457,0.08114726,3854.8,3854.7,0.6073]
[1761901204653,4.81614726,3854.8,3854.7,0.8591]
[1761901205854,0.0811433,3854.8,3854.7,0.5022]
[1761901206152,4.6621433,3854.8,3854.7,0.5022]
[1761901206352,4.6621433,3854.8,3854.7,0.8591]
[1761901207364,0.0811433,3854.8,3854.7,0.8591]
[1761901207654,4.6611433,3854.8,3854.7,0.8591]
[1761901209056,4.6611433,3854.8,3854.7,0.3569]
[1761901209757,4.6611433,3854.8,3854.7,0.6073]
[1761901209956,0.0811433,3854.8,3854.7,0.6073]
[1761901210249,2.9501433,3854.8,3854.7,0.6073]
[1761901210850,2.869,3854.8,3854.7,0.6073]
[1761901211457,2.869,3854.8,3854.7,0.8591]
[1761901211851,0.9339035,3855.4,3854.8,0.3351]
[1761901212151,9.22113928,3855.3,3855.1,0.3351]
[1761901212458,9.22113928,3855.2,3855.1,0.5793]
[1761901212853,0.08113928,3855.2,3855.1,0.7958]
[1761901213259,0.08113928,3855.2,3855.1,0.3351]
[1761901213555,0.08113928,3855.2,3855.1,0.7958]
[1761901213745,9.22013928,3855.2,3855.1,0.7958]
[1761901216163,9.22013928,3855.2,3855.1,0.5793]
[1761901218659,9.22013928,3855.2,3855.1,0.7958]
[1761901220868,9.22013928,3855.2,3854.6,0.567]
[1761901221058,9.22013928,3855.2,3854.5,0.166]
[1761901221059,0.08113928,3855.1,3854.7,0.3518]
[1761901221361,0.08113928,3855.0,3854.7,0.3518]
[1761901221553,0.08113928,3854.9,3854.7,0.3518]
[1761901221751,0.08113928,3854.8,3854.7,0.3518]
[1761901222156,0.08113928,3854.9,3854.7,0.3518]
[1761901223162,0.08113928,3854.9,3854.5,0.166]
[1761901223163,0.08113928,3854.9,3854.8,0.567]
[1761901223461,1.3977097,3855.2,3855.1,0.3518]
[1761901223669,0.08114079,3855.2,3855.1,0.7988]
[1761901223860,10.14888399,3855.2,3855.1,0.7988]
[1761901224058,9.21714079,3855.2,3855.1,0.3518]
[1761901224570,9.21714079,3855.2,3855.1,0.7988]
[1761901225262,9.21714079,3855.2,3855.1,0.567]
[1761901226164,9.21713617,3855.2,3855.1,0.567]
[1761901228160,10.61484587,3855.2,3855.1,0.3518]
[1761901228365,1.47884587,3855.2,3855.1,0.3518]
[1761901228666,9.61484587,3855.2,3855.1,0.3518]
[1761901229364,9.136,3855.2,3855.1,0.3518]
[1761901230467,9.136,3855.2,3854.8,0.3518]
[1761901230664,0.93237679,3854.9,3854.8,0.3518]
[1761901230864,9.136,3855.2,3854.8,0.3518]
[1761901231966,0.93256598,3855.0,3854.6,0.3518]
[1761901233466,0.93256598,3854.9,3854.6,0.3518]
[1761901234663,0.93256598,3854.7,3854.6,0.3518]
[1761901234866,10.06656598,3854.7,3854.6,0.3518]
[1761901235065,9.134,3854.7,3854.3,0.3518]
[1761901235257,0.93289393,3854.6,3854.3,0.3518]
[1761901237057,0.93289393,3854.6,3854.1,0.35422232]
[1761901238668,0.93289393,3854.4,3854.1,0.00242232]
[1761901238864,0.93289393,3854.2,3854.1,0.00242232]
[1761901239065,9.133,3854.2,3854.1,0.00242232]
[1761901239370,9.133,3854.2,3854.1,0.35422232]
[1761901239970,9.133,3854.2,3854.1,0.00242232]
[1761901240871,0.08116453,3854.2,3854.1,0.56862232]
[1761901241071,9.21416453,3854.2,3854.1,0.56862232]
[1761901242670,9.21416453,3854.2,3854.1,0.00242232]
[1761901242866,9.21416453,3854.2,3854.1,0.35162232]
[1761901243876,9.21416453,3854.2,3854.1,0.00242232]
[1761901244370,9.21416453,3854.2,3854.1,0.35162232]
[1761901246275,9.21416453,3854.2,3854.1,0.56862232]
[1761901246476,9.21416453,3854.2,3854.1,0.78862232]
[1761901246775,9.21416453,3854.2,3854.1,0.56862232]
[1761901252974,0.08116453,3854.2,3854.1,0.56862232]
[1761901253171,9.21216453,3854.2,3854.1,0.56862232]
[1761901253971,0.08116453,3854.2,3854.1,0.78862232]
[1761901254174,0.93180385,3854.7,3854.1,0.78862232]
[1761901254476,0.93149819,3855.0,3854.9,0.5662]
[1761901254671,10.14264364,3855.0,3854.9,0.5662]
[1761901255070,9.21114545,3855.0,3854.9,0.7862]
[1761901255478,0.08114545,3855.0,3854.9,0.7862]
[1761901255778,9.21114545,3855.0,3854.9,0.7862]
[1761901256676,9.21113598,3855.0,3854.9,0.7862]
[1761901256877,0.08113598,3855.0,3854.9,0.7862]
[1761901257077,9.21113598,3855.0,3854.9,0.7862]
[1761901260076,0.08113598,3855.0,3854.9,0.7862]
[1761901260380,9.21013598,3855.0,3854.9,0.7862]
[1761901261373,0.08113598,3855.0,3854.9,0.3492]
[1761901261573,9.20913598,3855.0,3854.9,0.3492]
[1761901261767,9.20913598,3855.0,3854.9,0.7862]
[1761901264976,9.20913598,3855.0,3854.9,0.3492]
[1761901265478,9.20913598,3855.0,3854.9,0.7862]
[1761901265681,9.20813598,3855.0,3854.9,0.7862]
[1761901266275,0.08113598,3855.0,3854.9,0.7862]
[1761901266477,9.20713598,3855.0,3854.9,0.7862]
[1761901268680,9.126,3855.0,3854.9,0.7862]
[1761901269881,0.00181918,3855.5,3855.4,0.5662]
[1761901270082,9.12581918,3855.5,3855.4,0.5662]
[1761901270275,9.2069476,3855.5,3855.4,0.5662]
[1761901271981,10.13844579,3855.5,3855.4,0.3492]
[1761901272376,10.13844579,3855.5,3855.4,0.5825]
[1761901272575,10.13844579,3855.5,3855.4,0.8145]
[1761901275370,10.13844298,3855.5,3855.4,0.8145]
[1761901275576,0.08294479,3855.5,3855.4,0.8145]
[1761901275771,9.12381918,3855.5,3855.4,0.8145]
[1761901275976,2.51217979,3856.8,3855.0,0.1372]
[1761901275977,0.93149819,3856.2,3856.1,0.2333]
[1761901276185,9.20311492,3856.2,3856.1,0.7912]
[1761901276483,10.13461311,3856.2,3856.1,0.7912]
[1761901276980,9.20502895,3856.2,3856.1,0.7912]
[1761901277872,10.13652714,3856.2,3856.1,0.3259]
[1761901278480,10.13652714,3856.2,3856.1,0.5617]
[1761901279085,9.20502895,3856.2,3856.1,0.793]
[1761901280184,10.13652714,3856.2,3856.1,0.3259]
[1761901281984,9.20502895,3856.2,3856.1,0.3259]
[1761901284778,9.20502895,3856.2,3856.1,0.5617]
[1761901285176,0.08302895,3856.2,3856.1,0.793]
[1761901285379,9.20102895,3856.2,3856.1,0.793]
[1761901285884,0.08302895,3856.2,3856.1,0.793]
[1761901286085,9.20102895,3856.2,3856.1,0.793]
[1761901286490,9.11991403,3856.2,3856.1,0.793]
[1761901286881,9.20102082,3856.2,3856.1,0.793]
[1761901287281,9.11991403,3856.2,3856.1,0.793]
[1761901289189,0.00191403,3856.2,3856.1,0.793]
[1761901289384,0.93149819,3857.2,3857.1,0.3362]
[1761901289688,0.93149819,3858.1,3858.0,0.9325]
[1761901289890,3.22570824,3859.5,3858.4,0.3362]
[1761901289891,10.04595819,3858.5,3858.4,0.3362]
[1761901290379,9.11882514,3858.5,3858.4,0.33899625]
[1761901290586,9.11882514,3858.5,3857.5,0.4654]
[1761901290786,9.11882514,3858.5,3858.1,0.3362]
[1761901290787,0.92897447,3858.2,3858.1,0.3362]
[1761901290988,9.115,3858.2,3858.1,0.3362]
[1761901291185,0.93179961,3858.5,3858.1,0.3362]
[1761901291488,0.93179961,3858.5,3858.0,0.1292]
[1761901291489,6.926,3858.4,3858.0,0.1292]
[1761901291678,0.92897447,3858.3,3858.1,0.3385421]
[1761901291878,7.85497447,3858.4,3858.1,0.3385421]
[1761901292093,0.92897447,3858.2,3858.1,0.8056421]
[1761901292391,0.92897447,3858.3,3858.2,0.3362]
[1761901292587,8.31946171,3858.4,3858.1,0.3385421]
[1761901292888,0.92784761,3858.2,3858.1,0.3385421]
[1761901293487,0.92784761,3858.2,3858.1,0.0023421]
[1761901293685,6.926,3858.4,3858.1,0.0023421]
[1761901293885,6.926,3858.4,3858.1,0.3385421]
[1761901294181,6.926,3858.4,3858.1,0.5743421]
[1761901294182,0.92757222,3858.4,3858.1,0.5743421]
[1761901294486,0.00282514,3858.5,3858.4,0.3362]
[1761901294688,9.11582514,3858.5,3858.4,0.3362]
[1761901294889,9.11582514,3858.5,3858.4,0.572]
[1761901295284,9.11582514,3858.5,3858.1,0.0023421]
[1761901295590,0.92757222,3858.2,3858.1,0.0023421]
[1761901295791,0.92757222,3858.2,3858.1,0.3385421]
[1761901295990,0.92757222,3858.3,3858.2,0.3362]
[1761901296183,0.92757222,3858.3,3858.1,0.0023421]
[1761901296389,1.39145406,3858.4,3858.1,0.0023421]
[1761901297186,0.92699154,3858.2,3858.1,0.3385421]
[1761901297399,0.92699154,3858.3,3858.2,0.3362]
[1761901297595,9.112,3858.3,3858.2,0.2358]
[1761901297891,9.112,3858.3,3858.1,0.0023421]
[1761901298091,9.112,3858.3,3858.1,0.3385421]
[1761901298292,9.112,3858.3,3858.2,0.3362]
[1761901298698,0.92981668,3858.5,3858.4,0.3362]
[1761901298888,9.11482514,3858.5,3858.4,0.3362]
[1761901299088,9.11482514,3858.5,3858.1,0.0023421]
[1761901299490,0.92699154,3858.4,3858.1,0.0023421]
[1761901299996,0.92699154,3858.4,3858.1,0.3385421]
[1761901300692,0.92981668,3858.5,3858.2,0.5715]
[1761901300996,9.111,3858.4,3858.3,0.3556]
[1761901301595,9.1920755,3858.4,3858.3,0.3556]
[1761901303594,9.1920755,3858.4,3858.1,0.0023421]
[1761901303790,0.0810755,3858.3,3858.1,0.0023421]
[1761901303995,0.0810755,3858.3,3858.1,0.3579421]
[1761901304399,0.0810755,3858.3,3858.1,0.0023421]
[1761901304587,0.0810755,3858.3,3858.1,0.3579421]
[1761901305397,0.0810755,3858.3,3858.1,0.0023421]
[1761901305588,1.00806704,3858.3,3858.1,0.0023421]
[1761901305900,0.0810755,3858.2,3858.1,0.0023421]
[1761901306192,10.11806704,3858.2,3858.1,0.0023421]
[1761901306698,10.11806704,3858.2,3857.5,0.1292]
[1761901306899,0.92699154,3858.0,3857.0,0.3451]
[1761901307088,0.0810755,3857.9,3857.0,0.3451]
[1761901307293,9.109,3857.8,3857.0,0.3451]
[1761901307601,0.0810755,3857.7,3857.0,0.1292]
[1761901307898,1.00806704,3857.7,3857.0,0.13213022]
[1761901308106,0.0810755,3857.6,3857.0,0.13213022]
[1761901308693,0.92699154,3857.4,3857.0,0.00293022]
[1761901308894,9.1900755,3857.3,3857.0,0.00293022]
[1761901309094,0.0810755,3857.2,3857.0,0.00293022]
[1761901309994,1.47252956,3857.2,3857.0,0.00293022]
[1761901310201,0.0810755,3857.1,3856.3,0.3556]
[1761901310499,0.92878991,3856.8,3856.3,0.3556]
[1761901310699,9.1900755,3856.7,3856.3,0.3556]
[1761901310895,0.0810755,3856.6,3856.3,0.3556]
[1761901311096,0.0810755,3856.6,3856.3,0.35829395]
[1761901311295,0.0810755,3856.6,3856.5,0.4957]
[1761901312000,9.1910755,3856.6,3856.5,0.9351]
[1761901312193,0.0810755,3856.6,3856.5,0.9351]
[1761901312389,0.92878991,3857.1,3857.0,0.4957]
[1761901312597,9.19110581,3857.1,3857.0,0.4957]
[1761901313400,9.19110581,3857.1,3857.0,0.7116]
[1761901313600,9.19110581,3857.1,3857.0,0.9351]
[1761901316206,9.11,3857.1,3857.0,0.9351]
[1761901317800,0.92878991,3857.7,3857.6,0.5715]
[1761901318001,10.11887998,3857.7,3857.6,0.5715]
[1761901319102,0.08109007,3857.7,3857.6,0.795]
[1761901319404,6.51509007,3857.7,3857.6,0.795]
[1761901319607,6.434,3857.7,3857.6,0.795]
[1761901320701,6.51508249,3857.7,3857.6,0.5715]
[1761901320908,6.51508249,3857.7,3857.6,0.3556]
[1761901321808,6.51508249,3857.7,3857.6,0.5715]
[1761901322108,6.51508249,3857.7,3857.6,0.795]
[1761901323208,6.51508249,3857.7,3857.6,0.5715]
[1761901324210,6.51508249,3857.7,3857.6,0.3556]
[1761901325308,6.51508249,3857.7,3857.0,0.1401]
[1761901325309,6.51508249,3857.7,3857.1,0.3556]
[1761901325505,0.08108249,3857.6,3857.2,0.3556]
[1761901325702,0.08108249,3857.6,3857.5,0.7116]
[1761901325903,0.08108249,3857.6,3857.5,0.4957]
[1761901326607,0.08108249,3857.6,3857.5,0.7116]
[1761901329706,0.08108249,3857.6,3857.5,0.9351]
[1761901330008,0.92878991,3858.0,3857.9,0.795]
[1761901330202,5.64387211,3858.0,3857.9,0.795]
[1761901331013,0.0810822,3858.0,3857.9,0.795]
[1761901331504,0.0810822,3858.0,3857.5,0.1401]
[1761901331505,9.10982514,3858.5,3858.4,0.5461]
[1761901331705,10.11968756,3858.5,3858.4,0.3302]
[1761901332104,10.11968756,3858.5,3858.4,0.5551]
[1761901332704,10.11968756,3858.5,3858.4,0.3302]
[1761901334511,10.11968787,3858.5,3858.4,0.3302]
[1761901334808,10.11968787,3858.5,3858.4,0.5551]
[1761901336204,9.19089796,3858.5,3858.4,0.5551]
[1761901336604,9.19089796,3858.5,3858.4,0.7912]
[1761901337004,9.19089796,3858.5,3858.4,0.5551]
[1761901337406,9.19089796,3858.5,3858.4,0.3302]
[1761901337606,0.08389796,3858.5,3858.4,0.7834]
[1761901338204,0.92878991,3859.3,3859.2,0.4532]
[1761901338408,0.92878991,3859.8,3859.7,0.5674]
[1761901338608,10.03378991,3859.8,3859.7,0.5674]
[1761901339009,9.105,3859.8,3859.7,0.5674]
[1761901339314,9.105,3859.8,3859.7,0.79796391]
[1761901339315,9.10764577,3859.8,3859.7,0.79796391]
[1761901339615,0.00264577,3859.8,3859.7,0.79796391]
[1761901340904,0.00264577,3859.8,3859.7,0.56946391]
[1761901341310,0.00264577,3859.8,3859.7,0.79796391]
[1761901341815,0.00264577,3859.8,3859.7,0.34476391]
[1761901342212,0.00264577,3859.8,3859.7,0.56946391]
[1761901342417,9.10564577,3859.8,3859.7,0.56946391]
[1761901342616,0.00264577,3859.8,3859.7,0.79796391]
[1761901343109,5.31664577,3859.8,3859.7,0.79796391]
[1761901343816,9.10664577,3859.8,3859.7,0.79796391]
[1761901344410,4.577e-05,3859.8,3859.7,0.79796391]
[1761901346517,0.92878991,3860.9,3860.8,0.7959]
[1761901346708,3.70445406,3861.1,3860.5,0.1338]
[1761901346709,0.92878991,3861.0,3860.9,0.7959]
[1761901347113,0.92878991,3861.1,3861.0,0.9297]
[1761901347314,9.111,3861.1,3861.0,0.587]